Cogmind - Beta 15 @@@ ROGUE MODE // 2025.07.04 @ 20:07:30 Player: jumpy Result: Self-destructed Performance ------------- Evolutions (1) 500 Regions Visited (2) 400 Robots Destroyed (8) 40 Value Destroyed (80) 80 Prototype IDs (0) 0 Alien Tech Used (0) 0 Bonus (0) 0 TOTAL SCORE: 1020 Bonus ------- None Cogmind --------- Core Integrity 389/400 Matter 263/300 Energy 265/265 System Corruption 0% Temperature Cool (68) Movement Walking (330) Ox3 Location -9/Materials Parts ------- > --- POWER (1) -------- Improved Ion Engine > --- PROPULSION (4) --- Aluminum Leg Aluminum Leg > --- UTILITY (2) ------ Large Storage Unit Seismic Detector > --- WEAPON (2) ------- Medium Laser Medium Laser > --- INVENTORY (15) --- Ion Engine Wheel Heat Sink Improved Terrain Scanner Terrain Scan Processor Seismic Detector Light Assault Rifle Rocket Launcher Mining Laser Peak State ------------ > --- POWER ------------ Improved Ion Engine > --- PROPULSION ------- Aluminum Leg Aluminum Leg > --- UTILITY ---------- Medium Storage Unit Seismic Detector > --- WEAPON ----------- Medium Laser Medium Laser > --- INVENTORY -------- Ion Engine Wheel Heat Sink Large Storage Unit Improved Terrain Scanner Terrain Scan Processor Seismic Detector Light Assault Rifle Rocket Launcher Mining Laser [Rating: 9] Favorites ----------- Power Ion Engine Engine Ion Engine Propulsion Aluminum Leg Treads Light Treads Leg Aluminum Leg Utility Seismic Detector Device Seismic Detector Storage Small Storage Unit Weapon Medium Laser Energy Gun Medium Laser Build | -11 -10 -9 ------- Run | Yrd Mat Mat Slots Evolved 2 | . . 2 Power . | . . . Propulsion 2 | . . 2 Utility . | . . . Weapon . | . . . Parts Attached 12 | 9 2 1 Power 2 | 1 . 1 Engine 2 | 1 . 1 Core . | . . . Reactor . | . . . Propulsion 4 | 4 . . Treads 2 | 2 . . Leg 2 | 2 . . Wheel . | . . . Hover . | . . . Flight . | . . . Utility 4 | 2 2 . Device 1 | 1 . . Storage 3 | 1 2 . Processor . | . . . Hackware . | . . . Protection . | . . . Artifact . | . . . Weapon 2 | 2 . . Energy Gun 2 | 2 . . Energy Cannon . | . . . Ballistic Gun . | . . . Ballistic Cannon . | . . . Launcher . | . . . Special Weapon . | . . . Impact Weapon . | . . . Slashing Weapon . | . . . Piercing Weapon . | . . . Special Melee Weapon . | . . . Unidentified Prototypes . | . . . Parts Lost . | . . . Power . | . . . Propulsion . | . . . Utility . | . . . Weapon . | . . . Highest Loss Streak . | . . . To Critical Strikes . | . . . Average Backups 7 | 4 7 9 Power . | . 1 1 Propulsion 1 | 1 2 1 Utility 2 | . 2 4 Weapon 1 | 1 2 2 Tool/Special . | . . . Unused Backups 10 | . . 10 Power 1 | . . 1 Propulsion 2 | . . 2 Utility 4 | . . 4 Weapon 3 | . . 3 Tool/Special . | . . . Average Slot Usage (%) 83 | . 100 77 Engine 11 | . 14 11 Leg 23 | . 28 22 Device 11 | . 14 11 Storage 11 | . 14 11 Energy Gun 23 | . 28 22 Peak Build Rating 9 | 7 8 9 Average Rating 7 | 5 7 8 On Entrance 5 | . 7 8 Naked Turns . | . . . Heaviest Build 32 | 15 30 32 Greatest Support 40 | 40 20 20 Greatest Overweight (x) 3 | 1 1 3 Average Overweight (x) . | . . . Largest Inventory Capacity 15 | 8 15 15 Average Capacity 9 | 7 8 11 Most Carried 10 | 7 9 10 Average Carried 7 | 4 7 9 Final Capacity 15 | 8 10 15 Final Carried 9 | 7 9 9 Class Distribution -------------------- 100% | Mutant Dominant Class ---------------- Mutant | -10/Materials Mutant | -9/Materials Resources | -11 -10 -9 ----------- Run | Yrd Mat Mat Matter Collected 290 | 290 . . Remotely . | . . . Salvage Created 241 | 200 11 30 Parts 20 | 17 3 . Haulers Intercepted . | . . . Recyclers Shooed . | . . . Parts Field Recycled . | . . . Retrieved Matter . | . . . Parts Self-Destructed . | . . . Prevented . | . . . Kills | -11 -10 -9 ------- Run | Yrd Mat Mat Combat Hostiles Destroyed 1 | . . 1 Classes Destroyed 4 | 2 1 1 Builder 1 | . 1 . Tunneler 5 | 5 . . Recycler 1 | 1 . . Grunt 1 | . . 1 Best Kill Streak 2 | 2 1 1 Combat Bots Only 1 | . . 1 Max Kills in Single Turn 1 | 1 1 1 Gunslinging . | . . . Exploded . | . . . Melee . | . . . Uniques/NPCs Destroyed . | . . . Combat | -11 -10 -9 -------- Run | Yrd Mat Mat Hostile Shots Fired 22 | . . 22 Missed 6 | . . 6 Hits 16 | . . 16 Projectile 16 | . . 16 Damage Taken 174 | . . 174 Core 11 | . . 11 Absorbed by Shields . | . . . Core Remaining (%) 100 | 100 100 . Volleys Fired 40 | 21 3 16 Largest 2 | 2 2 2 Hottest 100 | 100 100 100 Shots Fired 80 | 42 6 32 Gun 80 | 42 6 32 Cannon . | . . . Launcher . | . . . Special . | . . . Kinetic . | . . . Thermal 80 | 42 6 32 Explosive . | . . . Electromagnetic . | . . . Robot Hit Streak 5 | 4 1 5 Robot Miss Streak 9 | 4 4 9 Penetration Max . | . . . Secondary Targets . | . . . Shots Hit Robots 34 | 19 1 14 Core Hits 10 | 6 1 3 Critical Kills . | . . . Critical Parts Destroyed . | . . . Critical Strikes 6 | 3 . 3 Burn 6 | 3 . 3 Melee Attacks . | . . . Impact . | . . . Slashing . | . . . Piercing . | . . . Sneak Attacks . | . . . Combat Hostiles . | . . . Follow-up Attacks . | . . . Damage Inflicted 456 | 238 13 205 Guns 455 | 238 13 204 Cannons . | . . . Explosions . | . . . Melee . | . . . Ramming 1 | . . 1 Kinetic . | . . . Thermal 455 | 238 13 204 Explosive . | . . . Electromagnetic . | . . . Impact . | . . . Slashing . | . . . Piercing . | . . . Highest Corruption . | . . . Average Corruption . | . . . Corruption Purged . | . . . Corruption Blocked . | . . . Overload Shots . | . . . Overflow Damage . | . . . Projectiles . | . . . Explosions . | . . . Melee . | . . . Knockbacks . | . . . Impact . | . . . Kinetic . | . . . Secondary . | . . . Self-Inflicted Damage . | . . . Shots . | . . . Rammed . | . . . Targets Rammed 1 | . . 1 Kicked 1 | . . 1 Crushed . | . . . Highest Temperature 345 | 273 99 345 Average Temperature 88 | 73 47 121 Received Heat Transfer 99 | . . 99 Effects 2 | . . 2 Shutdowns 1 | . . 1 Short Circuit 1 | . . 1 Siege Activations . | . . . Martial Activations . | . . . Shielding Activations . | . . . Robots Disrupted . | . . . Combat Hostiles . | . . . Robots Corrupted . | . . . Combat Hostiles . | . . . Parts Fried . | . . . Impact Corruptions . | . . . Robots Melted 2 | 1 . 1 Combat Hostiles 1 | . . 1 Parts Melted 3 | 1 . 2 Heat Transferred 1776 | 925 37 814 Parts Sabotaged . | . . . Parts Stolen . | . . . Parts Stripped . | . . . Power Chain Reactions . | . . . Alert | -11 -10 -9 ------- Run | Yrd Mat Mat Maximum Alert Level . | . . . Low Security (%) 100 | 100 100 100 Level 1 . | . . . Level 2 . | . . . Level 3 . | . . . Level 4 . | . . . Level 5 . | . . . High Security . | . . . Max Security . | . . . Peak Influence 20 | 10 5 20 Initial . | . . . Average . | 1 . . Influence Increases 56 | 30 5 21 Destroy 0b10 Robot/C 20 | . . 20 Destroy 0b10 Robot/NC 35 | 30 5 . Destroy Structure 1 | . . 1 Influence Decreases 36 | 30 5 1 Time Decay 36 | 30 5 1 Squads Dispatched 1 | . . 1 Investigation . | . . . Extermination . | . . . Reinforcement 1 | . . 1 Assault . | . . . Garrison . | . . . Intercept . | . . . Searches Triggered . | . . . Construction Impeded . | . . . Haulers Reinforced . | . . . Active Scanning Responses . | . . . Cargo Convoy Interrupts . | . . . Stealth | -11 -10 -9 --------- Run | Yrd Mat Mat Distress Signals . | . . . Communications Jammed . | . . . Distress Signals . | . . . Times Spotted 11 | . 2 9 Peak Tracking Total 4 | . 1 4 Tactical Retreats . | . . . Traps | -11 -10 -9 ------- Run | Yrd Mat Mat Traps Triggered . | . . . Indirectly . | . . . Trap Hack Attempts . | . . . Triggered . | . . . Disarmed . | . . . Reprogrammed . | . . . Reused . | . . . Traps Extracted . | . . . Installed . | . . . Triggered . | . . . Machines | -11 -10 -9 ---------- Run | Yrd Mat Mat Machines Disabled . | . . . Max in Single Turn . | . . . Machines Repaired . | . . . Machines Dismantled . | . . . Machines Sabotaged . | . . . Overloaded Fab Kills . | . . . Hacking | -11 -10 -9 --------- Run | Yrd Mat Mat Machines Accessed . | . . . Terminals . | . . . Fabricators . | . . . Repair Stations . | . . . Recycling Units . | . . . Scanalyzers . | . . . Garrison Access . | . . . Total Hacks . | . . . Successful . | . . . Failed . | . . . Catastrophic . | . . . Database Lockouts . | . . . Manual . | . . . Terminals . | . . . Fabricators . | . . . Repair Stations . | . . . Recycling Units . | . . . Scanalyzers . | . . . Garrison Access . | . . . Terminal Hacks . | . . . Fabricator Hacks . | . . . Repair Station Hacks . | . . . Recycling Unit Hacks . | . . . Scanalyzer . | . . . Garrison Access Hacks . | . . . Unauthorized Hacks . | . . . Terminals . | . . . Fabricators . | . . . Repair Stations . | . . . Recycling Units . | . . . Scanalyzers . | . . . Garrison Access . | . . . Data Cores Recovered . | . . . Used . | . . . Hacking Detections . | . . . Full Trace Events . | . . . Feedback Events . | . . . Feedback Blocked . | . . . Robot Schematics Acquired . | . . . Robots Built . | . . . Authchips . | . . . Time . | . . . Total Robot Build Rating . | . . . Part Schematics Acquired . | . . . Parts Built . | . . . Authchips . | . . . Time . | . . . Total Part Build Rating . | . . . Parts Repaired . | . . . Time . | . . . Parts Recycled . | . . . Recycled Matter . | . . . Retrieved Matter . | . . . Retrieved Components . | . . . Parts Scanalyzed . | . . . Part Schematics Acquired . | . . . Parts Damaged . | . . . Bothacking | -11 -10 -9 ------------ Run | Yrd Mat Mat Used RIF Installer . | . . . Robots Hacked . | . . . Non-combat . | . . . Combat . | . . . Robot Hacks Applied . | . . . Relay Couplers Released . | . . . Fabnet Peak Effective % . | . . . Robots Rewired . | . . . Allies Hacked . | . . . Hacks Repelled . | . . . Allies | -11 -10 -9 -------- Run | Yrd Mat Mat Total Allies . | . . . Largest Group . | . . . Highest-Rated Group . | . . . Highest-Rated Ally . | . . . Total Orders . | . . . Ally Attacks . | . . . Total Damage . | . . . Kills . | . . . Allies Corrupted . | . . . Allies Melted . | . . . Intel | -11 -10 -9 ------- Run | Yrd Mat Mat Active Infowar (turns) 541 | 95 112 334 Seismic 541 | 95 112 334 Robot Analysis Total . | . . . Derelict Logs Recovered . | . . . Drone Launches . | . . . Drone Recoveries . | . . . Exploration | -11 -10 -9 ------------- Run | Yrd Mat Mat Turns Passed 716 | 270 112 334 Spaces Moved 423 | 142 82 199 Core 2 | 2 . . Treads 38 | 38 . . Legs 383 | 102 82 199 Wheels . | . . . Hover . | . . . Flight . | . . . Fastest Speed 50 | 50 120 120 Average Speed 133 | 131 120 138 Slowest Speed 330 | 190 190 330 Overloaded Moves . | . . . Propulsion Burnouts . | . . . Robots Hopped . | . . . Potential Cave-ins . | . . . Cave-ins Triggered . | . . . Exploration Rate (%) 17 | 7 23 21 Regions Visited 2 Branch Regions . Pre-discovered Areas . | . . . Known Exits Taken . | . . . Unknown Exits Taken 2 | 1 1 . Scrap Searched . | . . . Spaces Dug . | . . . Terrain Destroyed . | . . . Melee . | . . . Projectile . | . . . AOE . | . . . Terrain Rammed . | . . . Walls Destroyed . | . . . Machines Disabled . | . . . Actions | -11 -10 -9 --------- Run | Yrd Mat Mat Total 490 | 178 89 223 Wait . | . . . Move 421 | 141 81 199 Hop . | . . . Pick Up 11 | 7 2 2 Fast Attach 7 | 7 . . Attach . | . . . Detach . | . . . Swap 6 | 2 2 2 Drop 4 | . 1 3 Fire 40 | 21 3 16 Melee . | . . . Ram . | . . . Kick 1 | . . 1 Crush . | . . . Escape Stasis . | . . . Rewire . | . . . Trap . | . . . Miscellaneous . | . . . Route ------- -11/Scrapyard -10/Materials -9/Materials History --------- Turn | Location | Event 6 | -11/Scrapyard | Discovered new exit (range 15) 271 | -11/Scrapyard | Entered Materials 310 | -10/Materials | Build established: Mutant 371 | -10/Materials | Discovered new exit (range 7) 383 | -10/Materials | Entered another Materials area 383 | -9/Materials | Evolved 2 slots: Propulsion x2 717 | -9/Materials | Self-destructed Last Messages --------------- 00685_ K-01 Serf collects debris. 00688_ G-47 Trooper overheating. 00689_ K-01 Serf collects debris. 00689_ G-34 Mercenary suffers critical hit (Burn). 00689_ Melted Particle Gun. 00690_ G-47 Trooper overheating. 00696_ K-01 Serf collects debris. 00698_ G-34 Mercenary suffers critical hit (Burn). 00699_ G-34 Mercenary heat short circuits Aluminum Leg. 00701_ Power failure, Imp. Ion Engine shutdown. 00701_ G-34 Mercenary overheating. 00702_ G-34 Mercenary heat damages Broken Aluminum Leg, Sml. Laser, Heat Sink, Ion Engine. 00702_ G-34 Mercenary overheating. 00703_ Aluminum Leg broken. 00703_ Overheating: Short circuit. 00711_ Kicked G-34 Mercenary out of the way. 00714_ G-34 Mercenary heat spikes uncontrollably. 00715_ G-34 Mercenary heat damages core (-3). 00715_ Ion Engine melted. Map ----- +----------------------------------------------------+ | ?# #????????????????????????????????????? | | ?# #????????????????????????????????????? | | ?# #????????????????????????????????????? | | ?# ##########???????????????????????????? | | ?# # """ #??????????????????????????? | | ??###+###! """"" #??????????????????????????? | | ???# ## """"" #??????????????????????????? | | ???# + """"" #??????????????????????????? | | ???# ## """ #??????????????????????????? | | ???## ### ]#??????????????????????????? | | ????# #?# ! #??????????????????????????? | | ????# #?# #??????????????????????????? | | ????# #?####+######??????????????????????????? | | ????# #???# #??????????????####????????????? | | ????# ##### #????????????? ???????????? | | ????# #???????????? ???????????? | | ########### #??????????? ???????????? | | # ## #?????????? ???????????? | | # ! ## #?????????? g ?????????????? | | # ## ########### #????????????????? | | # ## g #????????????????? | | ??##+###### #????????????????? | | ???# #????# g""" #????????????????? | | ???# #######+### % """ +????????????????? | | ???# # = # [ "" #????????????????? | | ???# / """ # @ """ #????????????????? | | ???# # """"" # "" """ #????????????????? | | ???# # """"" # "Y k #????????????????? | | ???# # """"" + "" ??????????? | | ???# # """ # ???????? | | ???# # # ????????? | | ???# # ## ############## ????????? | | ???# ##+######### ?????????????????????????? | | ???# #???????# ?????????????????????????? | | ???# #???????# ?????????????????????????? | | ???# #???????# ?????????????????????????? | | ???# #???????# ?????????????????????????? | | ???# #???????# #????????????????????????? | | ???# #???????#k #????????????????????????? | | ???# ####????# #????????????????????????? | | ???# +????# #????????????????????????? | | ???# #????# #????????????????????????? | | ???# #????# #????????????????????????? | | ???# +????# #????????????????????????? | | ???# ######????# #????????????????????????? | | ??## #?????????# #???????????#????????????? | | ??# ####??????# #?????????? #??#####?????? | | ??# +??????# #???##+####/### ?????? | | ??# ####??????+ #???# ??????? | | ??# #?????????# #???# ???????? | +----------------------------------------------------+ Best States ------------- Heat Dissipation 28 Energy Generation 12 Energy Capacity 265 Matter Stores 300 Matter Capacity 300 Sight Range 16 Terrain Scan Density 10 Evasion (%) 55 Recoil Reduction 2 Item Schematics ----------------- None Robot Schematics ------------------ None Fabricated ------------ Nothing Repaired ---------- Nothing Alien Tech Used ----------------- None Achievements -------------- None Challenges ------------ None Game ------ Seed SuperquantumFortressTorch Manual? 0 Play Time 00:04:10 Cumulative 130.8 hours Start 2025.07.04 @ 20:04:36 End 2025.07.04 @ 20:07:30 Sessions 1 Manual Loads 0 Difficulty Rogue Special Mode None Game No. 344 Rogue 344 Adventurer 0 Explorer 0 Win Type - Total 3 Types 2/0/1/0/0/0/0/0/0/0 Lore% 65 Gallery% 54 Achievement% 46 Wizard Run 0 Options --------- Layout 0 ASCII 0 Keyboard 0 Movement Numpad Keybinds 0 Fullscreen 2 Font 18/Terminus Map View 76x50 Zoom Use 0% Tactical HUD 1 Map Filters NONE Filters NONE Steam 1 RUN: 65edcf20-568b-400d-a4ee-15dd0fba095e